[Event "Chpt Reg Jeunes Occitanie 2026 - Espalion"]
[Site "Espalion, France"]
[Round "6.7"]
[ECO "?"]
[Annotator "?"]
[TimeControl "1h30 + 30sec/cp"]

1. e4 {[%clk 1:30:54][%emt 0:00:06]} 1... c5 {[%clk 1:30:57][%emt 0:00:04]} 2.
Nc3 {[%clk 1:31:15][%emt 0:00:09]} 2... e6 {[%clk 1:31:19][%emt 0:00:07]} 3.
Nf3 {[%clk 1:31:30][%emt 0:00:15]} 3... Nc6 {[%clk 1:30:51][%emt 0:00:58]} 4.
d4 {[%clk 1:29:05][%emt 0:02:55]} 4... cxd4 {[%clk 1:31:16][%emt 0:00:05]} 5.
Nxd4 {[%clk 1:29:14][%emt 0:00:21]} 5... Nf6 {[%clk 1:31:32][%emt 0:00:14]} 6.
Nxc6 {[%clk 1:28:22][%emt 0:01:22]} 6... bxc6 {[%clk 1:31:53][%emt 0:00:09]}
7. Bg5 {[%clk 1:28:21][%emt 0:00:31]} 7... Be7 {[%clk 1:20:26][%emt 0:11:56]}
8. e5 {[%clk 1:09:49][%emt 0:19:03]} 8... Nd5 {[%clk 1:20:19][%emt 0:00:36]}
9. Bxe7 {[%clk 1:09:50][%emt 0:00:30]} 9... Qxe7 {[%clk 1:20:25][%emt 0:00:24]}
 10. Qd2 {[%clk 1:06:57][%emt 0:03:23]} 10... Rb8 {[%clk 1:18:18][%emt
0:02:35]} 11. Rb1 {[%clk 1:02:05][%emt 0:05:24]} 11... Qb4 {[%clk
1:13:31][%emt 0:05:16]} 12. Nxd5 {[%clk 1:00:12][%emt 0:02:24]} 12... Qxd2+
{[%clk 1:12:58][%emt 0:01:03]} 13. Kxd2 {[%clk 1:00:40][%emt 0:00:02]} 13...
cxd5 {[%clk 1:13:21][%emt 0:00:07]} 14. Bd3 {[%clk 0:58:01][%emt 0:03:10]}
14... Ke7 {[%clk 1:12:34][%emt 0:01:16]} 15. Rhd1 {[%clk 0:55:52][%emt
0:02:39]} 15... Rb6 {[%clk 1:11:56][%emt 0:01:07]} 16. c4 {[%clk 0:46:08][%emt
0:10:15]} 16... dxc4 {[%clk 1:08:19][%emt 0:04:07]} 17. Bxc4 {[%clk
0:46:26][%emt 0:00:13]} 17... Bb7 {[%clk 1:08:23][%emt 0:00:24]} 18. f3 {[%clk
0:46:11][%emt 0:00:47]} 18... Rc8 {[%clk 1:05:50][%emt 0:03:01]} 19. b3 {[%clk
0:38:25][%emt 0:08:18]} 19... Rc5 {[%clk 1:01:21][%emt 0:04:58]} 20. Re1
{[%clk 0:36:48][%emt 0:02:07]} 20... Bd5 {[%clk 0:57:13][%emt 0:04:37]} 21.
Bd3 {[%emt 0:10:14]} 21... Ra5 {[%clk 0:54:57][%emt 0:02:43]} 22. Rb2 {[%clk
0:25:52][%emt 0:01:46]} 22... Rb4 {[%clk 0:54:10][%emt 0:01:15]} 23. Kc3
{[%clk 0:22:10][%emt 0:04:15]} 23... Rh4 {[%clk 0:52:59][%emt 0:01:39]} 24. h3
{[%clk 0:15:37][%emt 0:07:05]} 24... Rc5+ {[%clk 0:52:05][%emt 0:01:22]} 25.
Kd2 {[%clk 0:15:33][%emt 0:00:35]} 25... Rh5 {[%clk 0:50:52][%emt 0:01:44]}
26. b4 {[%clk 0:15:25][%emt 0:00:38]} 26... Rc7 {[%clk 0:49:16][%emt 0:02:04]}
27. a4 {[%clk 0:13:22][%emt 0:02:35]} 27... Rg5 {[%clk 0:46:44][%emt 0:03:01]}
28. Re2 {[%clk 0:12:48][%emt 0:01:05]} 28... d6 {[%clk 0:43:10][%emt 0:04:04]}
29. exd6+ {[%clk 0:12:55][%emt 0:00:23]} 29... Kxd6 {[%clk 0:43:35][%emt
0:00:05]} 30. Rc2 {[%clk 0:12:25][%emt 0:01:00]} 30... Rb7 {[%clk
0:31:01][%emt 0:13:02]} 31. Rb2 {[%clk 0:12:08][%emt 0:00:48]} 31... Rh5
{[%clk 0:26:03][%emt 0:05:27]} 32. Be4 {[%clk 0:06:44][%emt 0:05:55]} 32...
Rh4 {[%clk 0:25:10][%emt 0:01:23]} 33. Kd3 {[%clk 0:04:35][%emt 0:02:40]}
33... f5 {[%clk 0:24:53][%emt 0:00:47]} 34. Bxd5 {[%clk 0:04:58][%emt 0:00:08]}
 34... Kxd5 {[%clk 0:24:05][%emt 0:01:17]} 35. Kc3 {[%clk 0:05:15][%emt
0:00:13]} 35... Rc4+ {[%clk 0:24:24][%emt 0:00:11]} 36. Kd3 {[%clk
0:04:28][%emt 0:01:17]} 36... Rcxb4 {[%clk 0:24:17][%emt 0:00:37]} 37. Rxb4
{[%clk 0:04:40][%emt 0:00:17]} 37... Rxb4 {[%clk 0:24:44][%emt 0:00:04]} 38.
Ra2 {[%clk 0:05:04][%emt 0:00:06]} 38... a5 {[%clk 0:24:53][%emt 0:00:20]} 0-1

[White "WOJTAS, Lumeann"]
[Black "LABOURET, Emile"]
[WhiteElo "1815"]
[BlackElo "1706"]
[Result "1-0"]
[Date "2026.03.06"]

[Event "Chpt Reg Jeunes Occitanie 2026 - Espalion"]
[Site "Espalion, France"]
[Round "6.8"]
[ECO "?"]
[Annotator "?"]
[TimeControl "1h30 + 30sec/cp"]

1. e4 {[%clk 1:30:45][%emt 0:00:14]} 1... e5 {[%clk 1:30:55][%emt 0:00:06]} 2.
Bc4 {[%clk 1:30:55][%emt 0:00:19]} 2... Nc6 {[%clk 1:31:11][%emt 0:00:15]} 3.
Nf3 {[%clk 1:31:16][%emt 0:00:08]} 3... Bc5 {[%clk 1:31:30][%emt 0:00:12]} 4.
d4 {[%clk 1:31:05][%emt 0:00:41]} 4... Bxd4 {[%clk 1:31:08][%emt 0:00:52]} 5.
Nxd4 {[%clk 1:29:56][%emt 0:01:39]} 5... Nxd4 {[%clk 1:30:36][%emt 0:01:02]}
6. O-O {[%clk 1:30:17][%emt 0:00:08]} 6... d6 {[%clk 1:29:57][%emt 0:01:10]}
7. f4 {[%clk 1:30:23][%emt 0:00:23]} 7... Nf6 {[%clk 1:28:51][%emt 0:01:37]}
8. fxe5 {[%clk 1:30:47][%emt 0:00:06]} 8... dxe5 {[%clk 1:28:43][%emt 0:00:39]}
 9. Bg5 {[%clk 1:31:10][%emt 0:00:07]} 9... Qe7 {[%clk 1:26:24][%emt 0:02:49]}
10. Na3 {[%clk 1:29:16][%emt 0:02:24]} 10... Be6 {[%clk 1:24:07][%emt 0:02:47]}
 11. c3 {[%clk 1:27:11][%emt 0:02:34]} 11... Bxc4 {[%clk 1:23:18][%emt
0:01:19]} 12. Nxc4 {[%clk 1:27:32][%emt 0:00:09]} 12... Nc6 {[%clk
1:23:35][%emt 0:00:13]} 13. Bxf6 {[%clk 1:27:17][%emt 0:00:45]} 13... gxf6
{[%clk 1:20:53][%emt 0:03:12]} 14. Ne3 {[%clk 1:23:53][%emt 0:03:53]} 14...
Qc5 {[%clk 1:20:08][%emt 0:01:16]} 15. Qe2 {[%clk 1:23:54][%emt 0:00:28]}
15... O-O-O {[%clk 1:17:25][%emt 0:00:54]} 16. Kh1 {[%clk 1:23:22][%emt
0:03:20]} 16... Ne7 {[%clk 1:12:16][%emt 0:05:41]} 17. Rxf6 {[%clk
1:23:06][%emt 0:00:45]} 17... c6 {[%clk 1:06:50][%emt 0:05:57]} 18. Rxf7
{[%clk 1:21:00][%emt 0:02:36]} 18... Ng6 {[%clk 1:03:45][%emt 0:03:35]} 19.
Rf2 {[%clk 1:03:49][%emt 0:17:40]} 19... Rd7 {[%clk 0:57:34][%emt 0:06:41]}
20. Rd1 {[%clk 1:00:01][%emt 0:04:18]} 20... Nf4 {[%clk 0:54:26][%emt 0:03:39]}
 21. Qg4 {[%clk 0:51:44][%emt 0:08:47]} 21... Rhd8 {[%clk 0:50:16][%emt
0:04:39]} 22. Rfd2 {[%clk 0:51:43][%emt 0:00:31]} 22... h5 {[%clk
0:49:22][%emt 0:01:25]} 23. Qf5 {[%clk 0:49:43][%emt 0:02:30]} 23... Qe7
{[%clk 0:45:21][%emt 0:04:31]} 24. Nc4 {[%clk 0:42:54][%emt 0:07:18]} 24...
Kc7 {[%clk 0:40:16][%emt 0:05:36]} 25. Rxd7+ {[%clk 0:42:05][%emt 0:01:18]}
25... Rxd7 {[%clk 0:40:40][%emt 0:00:07]} 26. Rxd7+ {[%clk 0:42:21]} 26...
Qxd7 {[%clk 0:41:07][%emt 0:00:17]} 27. Qxd7+ {[%clk 0:40:31][%emt 0:02:20]}
27... Kxd7 {[%clk 0:41:33][%emt 0:00:04]} 28. Nxe5+ {[%clk 0:40:54][%emt
0:00:06]} 28... Ke6 {[%clk 0:41:02][%emt 0:01:01]} 29. Nf3 {[%clk
0:40:28][%emt 0:00:55]} 29... Nd3 {[%clk 0:41:08][%emt 0:00:25]} 30. b4 {[%clk
0:38:10][%emt 0:02:47]} 30... Nf2+ {[%clk 0:39:49][%emt 0:01:49]} 31. Kg1
{[%clk 0:38:35][%emt 0:00:05]} 31... Nxe4 {[%clk 0:40:12][%emt 0:00:08]} 32.
c4 {[%clk 0:38:47][%emt 0:00:17]} 32... c5 {[%clk 0:38:50][%emt 0:01:52]} 33.
bxc5 {[%clk 0:33:32][%emt 0:05:45]} 33... Nxc5 {[%clk 0:37:07][%emt 0:02:11]}
34. Kf2 {[%clk 0:33:30][%emt 0:00:34]} 34... a6 {[%clk 0:33:38][%emt 0:04:04]}
35. Ke3 {[%clk 0:33:15][%emt 0:00:40]} 35... b5 {[%clk 0:33:27][%emt 0:00:42]}
36. cxb5 {[%clk 0:31:08][%emt 0:02:37]} 36... axb5 {[%clk 0:33:27][%emt
0:00:30]} 37. Nd4+ {[%clk 0:31:27][%emt 0:00:10]} 37... Ke5 {[%clk
0:33:34][%emt 0:00:23]} 38. Nxb5 {[%clk 0:31:49][%emt 0:00:08]} 38... Kf5
{[%clk 0:33:43][%emt 0:00:22]} 39. Nc3 {[%clk 0:31:55][%emt 0:00:24]} 39... h4
{[%clk 0:33:35][%emt 0:00:38]} 40. h3 {[%clk 0:32:02][%emt 0:00:23]} 1-0

[White "MARTIN-GOMES, Luis"]
[Black "MOREL, Yael"]
[WhiteElo "1702"]
[BlackElo "1794"]
[Result "1/2-1/2"]
[Date "2026.03.06"]

[Event "Chpt Reg Jeunes Occitanie 2026 - Espalion"]
[Site "Espalion, France"]
[Round "6.9"]
[ECO "?"]
[Annotator "?"]
[TimeControl "1h30 + 30sec/cp"]

1. e4 {[%emt 0:00:10]} 1... c5 {[%clk 1:30:54]} 2. Nf3 {[%clk 1:29:35][%emt
0:01:46]} 2... a6 {[%clk 1:31:19][%emt 0:00:09]} 3. c3 {[%clk 1:28:10][%emt
0:01:55]} 3... d5 {[%clk 1:31:44][%emt 0:00:05]} 4. e5 {[%clk 1:24:56][%emt
0:03:45]} 4... d4 {[%clk 1:27:09][%emt 0:05:04]} 5. cxd4 {[%clk 1:19:59][%emt
0:05:27]} 5... cxd4 {[%clk 1:27:20][%emt 0:00:19]} 6. Qa4+ {[%clk
1:17:49][%emt 0:02:40]} 6... Nc6 {[%clk 1:27:42][%emt 0:00:09]} 7. Bb5 {[%clk
1:00:22][%emt 0:17:57]} 7... Bd7 {[%clk 1:08:23][%emt 0:19:48]} 8. Bxc6 {[%clk
0:49:50][%emt 0:11:01]} 8... Bxc6 {[%clk 1:08:35][%emt 0:00:19]} 9. Qxd4
{[%clk 0:48:56][%emt 0:01:24]} 9... Qxd4 {[%clk 1:05:46][%emt 0:03:18]} 10.
Nxd4 {[%clk 0:48:04][%emt 0:01:16]} 10... Bxg2 {[%clk 1:06:08][%emt 0:00:15]}
11. Rg1 {[%clk 0:48:33][%emt 0:00:02]} 11... Bd5 {[%clk 1:05:46][%emt 0:00:51]}
 12. Nc3 {[%clk 0:48:50][%emt 0:00:13]} 12... e6 {[%clk 1:05:58][%emt 0:00:19]}
 13. Nde2 {[%clk 0:46:48][%emt 0:02:31]} 13... Ne7 {[%clk 1:03:29][%emt
0:03:00]} 14. d4 {[%clk 0:44:39][%emt 0:02:38]} 14... O-O-O {[%clk
1:03:31][%emt 0:00:28]} 15. Bg5 {[%clk 0:44:20][%emt 0:00:49]} 15... Rd7
{[%clk 1:02:08][%emt 0:01:53]} 16. Bxe7 {[%clk 0:44:21][%emt 0:00:29]} 16...
Rxe7 {[%clk 1:02:31][%emt 0:00:07]} 17. Nxd5 {[%clk 0:44:47][%emt 0:00:04]}
17... exd5 {[%clk 1:02:53][%emt 0:00:08]} 18. Nf4 {[%clk 0:45:10][%emt
0:00:07]} 18... Rd7 {[%clk 1:02:40][%emt 0:00:43]} 19. Rc1+ {[%clk
0:45:37][%emt 0:00:03]} 19... Kb8 {[%clk 1:02:48][%emt 0:00:22]} 20. Nh5
{[%clk 0:46:04][%emt 0:00:03]} 20... g6 {[%clk 1:01:32][%emt 0:01:47]} 21. Nf6
{[%clk 0:44:32][%emt 0:02:01]} 21... Rd8 {[%clk 1:01:51][%emt 0:00:11]} 22.
Ke2 {[%clk 0:44:30][%emt 0:00:32]} 22... h5 {[%clk 1:01:45][%emt 0:00:36]} 23.
Rg3 {[%clk 0:44:33][%emt 0:00:20]} 23... Be7 {[%clk 1:00:42][%emt 0:01:39]}
24. Rf3 {[%clk 0:44:33][%emt 0:00:30]} 1/2-1/2

[White "GARNIER, Alexis"]
[Black "HUDE, Hugo"]
[WhiteElo "1796"]
[BlackElo "1697"]
[Result "1/2-1/2"]
[Date "2026.03.06"]